fUST/lending_fUST_20240909
["ID","MTS","AMOUNT","RATE_DAILY","PERIOD"]
[337601099,1725888651201,-771.28,0.00036164,14]
[337601100,1725888651211,-910.99,0.00036164,14]
[337601101,1725888651219,-774.99,0.00036164,14]
[337601102,1725888651228,-1622.17,0.00036164,14]
[337601103,1725888651238,-221.380265,0.00036164,14]
[337601104,1725888651247,-500.0,0.00036164,14]
[337601105,1725888651256,-221.380265,0.00036164,14]
[337601106,1725888651266,-500.0,0.00036164,14]
[337601107,1725888651275,-500.0,0.00036164,14]
[337601108,1725888651285,-500.0,0.00036164,14]
[337601109,1725888651294,-500.0,0.00036164,14]
[337601110,1725888651304,-566.44834057,0.00036164,14]
[337601111,1725888651314,-500.0,0.00036164,14]
[337601112,1725888651323,-302.3,0.00036164,7]
[337601113,1725888651333,-645.18,0.00036164,14]
[337601114,1725888651344,-500.0,0.00036164,14]
[337601115,1725888651356,-500.0,0.00036164,14]
[337601116,1725888651366,-500.0,0.00036164,14]
[337601117,1725888651375,-1643.4,0.00036164,14]
[337601118,1725888651385,-500.0,0.00036164,14]
[337601119,1725888651394,-654.56,0.00036164,14]
[337601120,1725888651404,-184.944685,0.00036164,14]
[337601121,1725888651413,-2570.79,0.00036164,30]
[337601122,1725888651422,-2210.56,0.00036164,14]
[337601123,1725888651431,-644.58,0.00036164,14]
[337601124,1725888651441,-579.24,0.00036164,14]
[337601125,1725888651450,-1451.27,0.00036164,14]
[337601126,1725888651460,-500.0,0.00036164,14]
[337601127,1725888651470,-217.665348,0.00036164,14]
[337601128,1725888651479,-500.0,0.00036164,14]
[337601129,1725888651488,-217.665348,0.00036164,14]
[337601130,1725888651498,-500.0,0.00036164,14]
[337601131,1725888651507,-500.0,0.00036164,14]
[337601132,1725888651516,-500.0,0.00036164,14]
[337601133,1725888651526,-500.0,0.00036164,14]
[337601134,1725888651535,-3962.868403,0.00036164,14]
[337601135,1725888651545,-3962.868403,0.00036164,14]
[337601136,1725888651554,-1545.68,0.00036164,14]
[337601137,1725888651564,-500.0,0.00036164,14]
[337601138,1725888651573,-500.0,0.00036164,14]
[337601139,1725888651582,-500.0,0.00036164,14]
[337601140,1725888651592,-500.0,0.00036164,14]
[337601141,1725888651602,-619.35,0.00036164,14]
[337601142,1725888651611,-419.170424,0.00036164,14]
[337601143,1725888651621,-419.170424,0.00036164,14]
[337601144,1725888651631,-500.0,0.00036164,14]
[337601145,1725888651640,-419.170424,0.00036164,14]
[337601146,1725888651650,-419.170424,0.00036164,14]
[337601147,1725888651662,-724.08,0.00036164,14]
[337601148,1725888651674,-1882.7,0.00036164,14]
[337601149,1725888651683,-212.72358062,0.00036164,14]
[337601150,1725888651693,-500.0,0.00036164,14]
[337601151,1725888651702,-500.0,0.00036164,14]
[337601152,1725888651712,-500.0,0.00036164,14]
[337601153,1725888651721,-327.273999,0.00036164,14]
[337601154,1725888651730,-327.273999,0.00036164,14]
[337601155,1725888651740,-327.273999,0.00036164,14]
[337601156,1725888651749,-327.273999,0.00036164,14]
[337601157,1725888651759,-327.273999,0.00036164,14]
[337601158,1725888651768,-327.273999,0.00036164,14]
[337601159,1725888651777,-625.66,0.00036164,14]
[337601160,1725888651787,-612.33,0.00036164,14]
[337601161,1725888651797,-695.38,0.00036164,14]
[337601162,1725888651807,-500.0,0.00036164,14]
[337601163,1725888651817,-500.0,0.00036164,14]
[337601164,1725888651827,-555.93,0.00036164,14]
[337601165,1725888651837,-503.12,0.00036164,14]
[337601166,1725888651846,-500.0,0.00036164,14]
[337601167,1725888651856,-499.33184194,0.00036164,14]
[337601168,1725888651865,-305.011856,0.00036164,14]
[337601169,1725888651874,-305.011856,0.00036164,14]
[337601170,1725888651884,-500.0,0.00036164,14]
[337601171,1725888651894,-305.011856,0.00036164,14]
[337601172,1725888651903,-305.011856,0.00036164,14]
[337601173,1725888651912,-500.0,0.00036164,14]
[337601174,1725888651922,-500.0,0.00036164,14]
[337601175,1725888651931,-1687.17,0.00036164,14]
[337601176,1725888651942,-500.0,0.00036164,14]
[337601177,1725888651952,-903.52,0.00036164,14]
[337601178,1725888651961,-500.0,0.00036164,14]
[337601179,1725888651970,-896.05,0.00036164,14]
[337601180,1725888651980,-500.0,0.00036164,14]
[337601181,1725888651989,-2217.94,0.00036164,14]
[337601182,1725888651999,-500.0,0.00036164,14]
[337601183,1725888652008,-500.0,0.00036164,14]
[337601184,1725888652018,-602.85,0.00036164,14]
[337601185,1725888652027,-796.58,0.00036164,14]
[337601186,1725888652037,-500.0,0.00036164,14]
[337601187,1725888652047,-501.32120845,0.00036164,10]
[337601188,1725888652056,-819.58,0.00036164,14]
[337601189,1725888652066,-500.0,0.00036164,14]
[337601190,1725888652075,-500.0,0.00036164,14]
[337601191,1725888652084,-500.0,0.00036164,14]
[337601192,1725888652093,-500.0,0.00036164,14]
[337601193,1725888652103,-151.0,0.00036164,14]
[337601194,1725888652113,-151.0,0.00036164,14]
[337601195,1725888652123,-346.58636712,0.00036164,14]
[337601196,1725888652132,-500.0,0.00036164,14]
[337601197,1725888652142,-1076.49,0.00036164,14]
[337601198,1725888652151,-500.0,0.00036164,14]
[337601199,1725888652160,-15575.76126813,0.00036164,14]
[337601200,1725888652389,-500.0,0.00035616,14]
[337601201,1725888652398,-222.15,0.0003589,14]
[337601202,1725888652407,-5371.40564472,0.00036164,14]
[337601203,1725888652828,-2685.15308715,0.00036164,14]
[337601204,1725888652839,-177.173024,0.00036164,14]
[337601205,1725888652849,-500.0,0.00036164,14]
[337601206,1725888652858,-177.173024,0.00036164,14]
[337601207,1725888652867,-500.0,0.00036164,14]
[337601208,1725888652877,-831.47,0.00036164,14]
[337601209,1725888652886,-557.59,0.00036164,14]
[337601210,1725888652896,-5456.41,0.00036164,14]
[337601211,1725888652906,-177.173024,0.00036164,14]
[337601212,1725888652916,-177.173024,0.00036164,14]
[337601213,1725888652925,-568.18,0.00036164,14]
[337601214,1725888652935,-500.0,0.00036164,14]
[337601215,1725888652947,-500.0,0.00036164,14]
[337601216,1725888652956,-2501.05,0.00036164,14]
[337601217,1725888652966,-1000.0,0.00036164,60]
[337601218,1725888652976,-1599.98,0.00036164,14]
[337601219,1725888652985,-530.0,0.00036164,14]
[337601220,1725888652995,-500.0,0.00036164,14]
[337601221,1725888653004,-5095.06,0.00036164,14]
[337601222,1725888653014,-2589.34,0.00036164,14]
[337601223,1725888653023,-500.0,0.00036164,14]
[337601224,1725888653032,-500.0,0.00036164,14]
[337601225,1725888653041,-151.0,0.00036164,14]
[337601226,1725888653050,-151.0,0.00036164,14]
[337601227,1725888653187,-500.0,0.00036164,14]
[337601228,1725888653202,-500.0,0.00036164,14]
[337601229,1725888653211,-3737.71,0.00036164,14]
[337601230,1725888653220,-500.0,0.00036164,14]
[337601231,1725888653229,-281.832942,0.00036164,14]
[337601232,1725888653239,-996.96,0.00036164,14]
[337601233,1725888653247,-281.832942,0.00036164,14]
[337601234,1725888653257,-3001.35,0.00036164,14]
[337601235,1725888653266,-180.01468739,0.00036164,14]
[337601236,1725888653276,-10024.24,0.00036164,14]
[337601237,1725888653286,-281.832942,0.00036164,14]
[337601238,1725888653295,-281.832942,0.00036164,14]
[337601239,1725888653304,-1708.68,0.00036164,14]
[337601240,1725888653314,-500.0,0.00036164,14]
[337601241,1725888653324,-645.93,0.00036164,14]
[337601242,1725888653335,-1173.15,0.00036164,14]
[337601243,1725888653345,-500.0,0.00036164,14]
[337601244,1725888653355,-500.0,0.00036164,14]
[337601245,1725888653366,-500.0,0.00036164,2]
[337601246,1725888653375,-1101.36,0.00036164,14]
[337601247,1725888653385,-1177.84,0.00036164,14]
[337601248,1725888653394,-500.0,0.00036164,14]
[337601249,1725888653404,-946.12,0.00036164,14]
[337601250,1725888653414,-929.42,0.00036164,14]
[337601251,1725888653424,-255.83652546,0.00036164,14]
[337601253,1725888810790,500.0,0.00028,120]
[337601260,1725889217250,-166.666666,0.00029279,2]
[337601261,1725889217274,-1500.0,0.0003,2]
[337601262,1725889232171,-1500.0,0.00030105,2]
[337601263,1725889232194,-676.833334,0.0003011,2]
[337601285,1725889397697,4005.33567741,0.00027,2]
[337601331,1725889531104,-2423.81425779,0.00029994,2]
[337601334,1725889747148,-1988.89919231,0.00029994,2]
[337601335,1725889747171,-1330.73218578,0.00030101,2]
[337601336,1725889747194,-208.651513,0.00030201,2]
[337601337,1725889747217,-1500.0,0.00030211,2]
[337601338,1725889747240,-400.0,0.00030315,2]
[337601339,1725889747262,-1500.0,0.00030316,2]
[337601340,1725889747285,-1500.0,0.00030421,2]
[337601341,1725889747307,-1500.0,0.00030526,2]
[337601342,1725889747329,-1500.0,0.00030632,2]
[337601343,1725889747350,-1500.0,0.00030737,2]
[337601344,1725889747374,-1500.0,0.00030842,2]
[337601345,1725889747397,-1500.0,0.00030947,2]
[337601346,1725889747418,-221.0,0.00031053,2]
[337601347,1725889747439,-1500.0,0.00031053,2]
[337601348,1725889747461,-1500.0,0.00031158,2]
[337601349,1725889747482,-1500.0,0.00031263,2]
[337601350,1725889747503,-1500.0,0.00031368,2]
[337601351,1725889747524,-1500.0,0.00031474,2]
[337601352,1725889747546,-1500.0,0.00031579,2]
[337601353,1725889747568,-1500.0,0.00031684,2]
[337601354,1725889747591,-208.651513,0.00031775,2]
[337601355,1725889747613,-1500.0,0.00031789,2]
[337601356,1725889747636,-1500.0,0.00031895,2]
[337601357,1725889747658,-1500.0,0.00032,2]
[337601358,1725889747680,-1500.0,0.00032105,2]
[337601359,1725889747702,-577.49651627,0.00032211,2]
[337601360,1725889749594,-922.50348373,0.00032211,2]
[337601361,1725889749619,-1500.0,0.00032316,2]
[337601362,1725889749641,-1500.0,0.00032421,2]
[337601363,1725889749662,-1500.0,0.00032526,2]
[337601364,1725889749683,-1500.0,0.00032632,2]
[337601365,1725889749705,-1500.0,0.00032737,2]
[337601366,1725889749727,-1500.0,0.00032842,2]
[337601367,1725889749749,-1500.0,0.00032947,2]
[337601368,1725889749771,-1500.0,0.00033053,2]
[337601369,1725889749792,-1500.0,0.00033158,2]
[337601370,1725889749813,-1500.0,0.00033263,2]
[337601371,1725889749834,-168.879309,0.00033274,2]
[337601372,1725889749855,-168.879309,0.00033298,2]
[337601373,1725889749877,-168.879309,0.00033321,2]
[337601374,1725889749899,-168.879309,0.00033345,2]
[337601375,1725889749921,-558.0,0.00033346,2]
[337601376,1725889749945,-1500.0,0.00033368,2]
[337601377,1725889749967,-168.879309,0.00033369,2]
[337601378,1725889749989,-168.879309,0.00033393,2]
[337601379,1725889750011,-168.879309,0.00033416,2]
[337601380,1725889750033,-168.879309,0.0003344,2]
[337601381,1725889750056,-1500.0,0.00033474,2]
[337601382,1725889750078,-1500.0,0.00033579,2]
[337601383,1725889750099,-1500.0,0.00033684,2]
[337601384,1725889750123,-1500.0,0.00033789,2]
[337601385,1725889750144,-1361.04553113,0.00033895,2]
[337601386,1725889764241,196.509037,0.00033729,2]
[337601387,1725889764429,1631.08933055,0.00032,2]
[337601390,1725889795531,166.666666,0.00033112,2]
[337601415,1725889831993,-1440.80641641,0.000348,14]
[337601422,1725889832057,-76.72819859,0.000348,14]
[337601424,1725889832067,-45.38120533,0.00035,35]
[337601487,1725889838067,-893.22122392,0.00035,35]
[337601488,1725889838081,-1517.534615,0.00035,14]
[337601489,1725889838091,-1517.534622,0.00035,7]
[337601490,1725889838101,-1517.534615,0.00035,7]
[337601491,1725889838111,-1000.0,0.00035248,60]
[337601492,1725889838122,-338.13317802,0.00035248,7]
[337601493,1725889838132,-1801.32891463,0.0003526,2]
[337601494,1725889838142,-151.0,0.00035476,14]
[337601495,1725889838153,-2229.16678671,0.00035485,2]
[337601496,1725889838164,-863.5893147,0.00035485,2]
[337601497,1725889838174,-2229.16678671,0.00035488,2]
[337601498,1725889838188,-2229.16678671,0.00035491,2]
[337601499,1725889838198,-2229.16678671,0.00035493,2]
[337601500,1725889838209,-2229.16678671,0.00035496,2]
[337601502,1725889838220,-678.03,0.00035575,3]
[337601503,1725889838232,-500.0,0.00035575,7]
[337601505,1725889838242,-500.0,0.00035575,7]
[337601506,1725889838254,-500.0,0.00035575,7]
[337601507,1725889838263,-253.2,0.00035575,7]
[337601508,1725889838273,-501.48433499,0.00035575,7]
[337601510,1725889838283,-500.0,0.00035575,7]
[337601512,1725889838292,-500.0,0.00035575,7]
[337601513,1725889838302,-500.0,0.00035575,7]
[337601514,1725889838311,-500.0,0.00035575,7]
[337601515,1725889838323,-500.0,0.00035575,7]
[337601516,1725889838334,-321.0143009,0.00035575,7]
[337601517,1725889838345,-500.0,0.00035575,7]
[337601518,1725889838355,-500.0,0.00035575,7]
[337601519,1725889838364,-432.88,0.00035576,3]
[337601520,1725889838375,-500.0,0.00035585,7]
[337601521,1725889838385,-494.23183568,0.00035585,7]
[337601522,1725889838395,-161.71968738,0.00035585,7]
[337601523,1725889838405,-138050.483785,0.00035586,5]
[337601524,1725889838416,-75271.8118781,0.00035586,5]
[337601525,1725889838425,-138050.483785,0.00035596,5]
[337601526,1725889838437,-75271.8118781,0.00035596,5]
[337601527,1725889838446,-150.112233,0.000356,6]
[337601529,1725889838456,-150.112233,0.000356,5]
[337601530,1725889838466,-150.112233,0.000356,10]
[337601531,1725889838476,-150.112233,0.000356,7]
[337601532,1725889838486,-150.112233,0.000356,9]
[337601533,1725889838496,-150.112233,0.000356,5]
[337601534,1725889838506,-150.112233,0.000356,5]
[337601535,1725889838517,-150.112233,0.000356,8]
[337601536,1725889838527,-150.112233,0.000356,9]
[337601537,1725889838537,-150.112233,0.000356,6]
[337601538,1725889838547,-150.112233,0.000356,5]
[337601539,1725889838558,-150.112233,0.000356,6]
[337601540,1725889838567,-150.112233,0.000356,9]
[337601541,1725889838578,-287.596406,0.000356,7]
[337601542,1725889838588,-2000.0,0.00035605,2]
[337601543,1725889838598,-83196.55941504,0.00035606,5]
[337601544,1725889838611,-54853.92436996,0.00035606,5]
[337601545,1725889838620,-129359.19079385,0.00035606,5]
[337601550,1725889840158,-63.15104933,0.00035606,5]
[337601552,1725889840170,-96393.09379082,0.00035606,5]
[337601553,1725889840180,-151.0,0.00035606,14]
[337601555,1725889840193,-153.934964,0.00035616,14]
[337601557,1725889840203,-500.0,0.00035616,14]
[337601559,1725889840211,-427.14022128,0.00035616,14]
[337601561,1725889840220,-500.0,0.00035616,14]
[337601562,1725889840230,-500.0,0.00035616,14]
[337601563,1725889840240,-500.0,0.00035616,14]
[337601564,1725889840250,-500.0,0.00035616,14]
[337601565,1725889840260,-500.0,0.00035616,14]
[337601566,1725889840270,-500.0,0.00035616,14]
[337601567,1725889840280,-500.0,0.00035616,14]
[337601568,1725889840290,-500.0,0.00035616,14]
[337601569,1725889840299,-500.0,0.00035616,14]
[337601570,1725889840309,-500.0,0.00035616,14]
[337601571,1725889840318,-500.0,0.00035616,14]
[337601572,1725889840328,-500.0,0.00035616,14]
[337601573,1725889840339,-500.0,0.00035616,14]
[337601574,1725889840348,-500.0,0.00035616,14]
[337601575,1725889840360,-747.69,0.00035616,7]
[337601576,1725889840370,-500.86179566,0.00035616,14]
[337601577,1725889840379,-500.0,0.00035616,14]
[337601579,1725889840389,-500.0,0.00035616,14]
[337601581,1725889840399,-500.0,0.00035616,14]
[337601583,1725889840409,-500.0,0.00035616,14]
[337601585,1725889840419,-500.0,0.00035616,14]
[337601587,1725889840429,-821.15,0.00035616,14]
[337601589,1725889840440,-505.23180981,0.00035616,14]
[337601591,1725889840449,-500.0,0.00035616,14]
[337601593,1725889840459,-500.0,0.00035616,14]
[337601595,1725889840468,-508.98,0.00035616,14]
[337601597,1725889840478,-766.18,0.00035616,14]
[337601599,1725889840487,-500.0,0.00035616,14]
[337601601,1725889840496,-500.0,0.00035616,14]
[337601603,1725889840505,-500.0,0.00035616,14]
[337601605,1725889840515,-500.0,0.00035616,14]
[337601607,1725889840524,-776.39,0.00035616,14]
[337601609,1725889840534,-500.0,0.00035616,14]
[337601611,1725889840544,-500.0,0.00035616,14]
[337601613,1725889840553,-500.0,0.00035616,14]
[337601615,1725889840562,-812.76,0.00035616,14]
[337601618,1725889840572,-500.0,0.00035616,14]
[337601620,1725889840583,-500.0,0.00035616,14]
[337601622,1725889840592,-500.0,0.00035616,14]
[337601624,1725889840602,-718.59,0.00035616,14]
[337601626,1725889840611,-500.0,0.00035616,14]
[337601628,1725889840622,-289.71,0.00035616,7]
[337601630,1725889840631,-500.0,0.00035616,14]
[337601632,1725889840641,-500.0,0.00035616,14]
[337601634,1725889840651,-500.0,0.00035616,14]
[337601636,1725889840661,-627.28,0.00035616,14]
[337601638,1725889840670,-501.99373175,0.00035616,14]
[337601640,1725889840681,-500.0,0.00035616,14]
[337601643,1725889840697,-501.59858043,0.00035616,14]
[337601645,1725889840707,-500.0,0.00035616,14]
[337601647,1725889840718,-500.0,0.00035616,14]
[337601649,1725889840727,-500.0,0.00035616,14]
[337601651,1725889840737,-500.0,0.00035616,14]
[337601653,1725889840746,-500.0,0.00035616,14]
[337601655,1725889840756,-500.0,0.00035616,14]
[337601657,1725889840766,-500.0,0.00035616,14]
[337601659,1725889840775,-500.0,0.00035616,14]
[337601661,1725889840785,-500.0,0.00035616,14]
[337601663,1725889840795,-500.0,0.00035616,14]
[337601665,1725889840807,-500.0,0.00035616,2]
[337601667,1725889840816,-500.0,0.00035616,14]
[337601670,1725889840827,-956.97,0.00035616,14]
[337601672,1725889840836,-510.71981059,0.00035616,14]
[337601674,1725889840845,-511.65401674,0.00035616,14]
[337601676,1725889840854,-580.29,0.00035616,14]
[337601678,1725889840864,-1481.28,0.00035616,14]
[337601679,1725889840873,-500.0,0.00035616,14]
[337601682,1725889840884,-500.0,0.00035616,14]
[337601684,1725889840894,-500.0,0.00035616,14]
[337601686,1725889840904,-500.0,0.00035616,14]
[337601688,1725889840915,-559.37,0.00035616,14]
[337601690,1725889840925,-500.0,0.00035616,14]
[337601692,1725889840937,-500.98323211,0.00035616,14]
[337601694,1725889840946,-500.0,0.00035616,14]
[337601696,1725889840955,-500.0,0.00035616,14]
[337601698,1725889840967,-500.0,0.00035616,14]
[337601700,1725889840976,-315.4854012,0.00035616,14]
[337601702,1725889840987,-593.55,0.00035616,14]
[337601704,1725889840998,-500.0,0.00035616,14]
[337601707,1725889841008,-500.0,0.00035616,14]
[337601709,1725889841017,-502.53622247,0.00035616,14]
[337601711,1725889841027,-521.81453931,0.00035616,14]
[337601713,1725889841036,-500.0,0.00035616,14]
[337601715,1725889841046,-500.0,0.00035616,14]
[337601717,1725889841055,-500.0,0.00035616,14]
[337601719,1725889841065,-500.0,0.00035616,14]
[337601721,1725889841077,-500.0,0.00035616,14]
[337601723,1725889841087,-500.0,0.00035616,14]
[337601724,1725889841096,-500.0,0.00035616,14]
[337601727,1725889841105,-500.0,0.00035616,14]
[337601729,1725889841116,-500.0,0.00035616,14]
[337601731,1725889841126,-500.0,0.00035616,14]
[337601733,1725889841136,-500.0,0.00035616,14]
[337601735,1725889841145,-530.53411282,0.00035616,14]
[337601737,1725889841156,-550.93,0.00035616,14]
[337601739,1725889841166,-550.93,0.00035616,14]
[337601741,1725889841175,-500.0,0.00035616,14]
[337601743,1725889841188,-500.0,0.00035616,14]
[337601745,1725889841197,-500.0,0.00035616,14]
[337601747,1725889841206,-500.0,0.00035616,14]
[337601749,1725889841215,-500.0,0.00035616,14]
[337601751,1725889841225,-586.82,0.00035616,14]
[337601753,1725889841234,-501.663795,0.00035616,14]
[337601755,1725889841244,-2748.52,0.00035616,14]
[337601757,1725889841254,-642.7053625,0.00035616,14]
[337601759,1725889841265,-500.0,0.00035616,14]
[337601761,1725889841275,-500.0,0.00035616,14]
[337601763,1725889841285,-500.0,0.00035616,2]
[337601765,1725889841294,-503.02724237,0.00035616,14]
[337601767,1725889841304,-500.0,0.00035616,14]
[337601769,1725889841312,-151.293637,0.00035616,2]
[337601771,1725889841322,-500.0,0.00035616,14]
[337601773,1725889841331,-500.0,0.00035616,14]
[337601776,1725889841341,-151.0,0.00035616,14]
[337601778,1725889841350,-151.0,0.00035616,14]
[337601780,1725889841361,-1318.47,0.00035616,7]
[337601782,1725889841370,-500.0,0.00035616,14]
[337601784,1725889841379,-500.0,0.00035616,14]
[337601786,1725889841388,-858.71,0.00035616,14]
[337601788,1725889841398,-500.0,0.00035616,14]
[337601790,1725889841407,-539.38485539,0.00035616,14]
[337601792,1725889841417,-500.0,0.00035616,14]
[337601794,1725889841426,-500.0,0.00035616,14]
[337601795,1725889841437,-500.0,0.00035616,14]
[337601798,1725889841446,-500.0,0.00035616,14]
[337601800,1725889841456,-500.0,0.00035616,14]
[337601802,1725889841465,-500.0,0.00035616,14]
[337601804,1725889841474,-501.21850379,0.00035616,14]
[337601806,1725889841483,-925.74,0.00035616,14]
[337601808,1725889841493,-500.0,0.00035616,10]
[337601810,1725889841503,-500.0,0.00035616,14]
[337601812,1725889841512,-501.11443841,0.00035616,14]
[337601814,1725889841521,-500.0,0.00035616,14]
[337601816,1725889841530,-500.0,0.00035616,14]
[337601818,1725889841540,-500.0,0.00035616,14]
[337601820,1725889841549,-500.0,0.00035616,14]
[337601822,1725889841558,-1634.65,0.00035616,14]
[337601824,1725889841568,-500.0,0.00035616,14]
[337601826,1725889841577,-500.0,0.00035616,14]
[337601828,1725889841587,-500.0,0.00035616,14]
[337601830,1725889841596,-500.0,0.00035616,14]
[337601832,1725889841606,-500.0,0.00035616,14]
[337601834,1725889841616,-500.0,0.00035616,14]
[337601836,1725889841625,-500.0,0.00035616,14]
[337601838,1725889841634,-500.0,0.00035616,14]
[337601840,1725889841643,-1617.81,0.00035616,14]
[337601842,1725889841652,-1385.19,0.00035616,14]
[337601844,1725889841661,-500.0,0.00035616,14]
[337601846,1725889841671,-500.0,0.00035616,14]
[337601849,1725889841680,-500.0,0.00035616,14]
[337601851,1725889841692,-500.0,0.00035616,14]
[337601853,1725889841701,-520.83,0.00035616,14]
[337601855,1725889841710,-500.0,0.00035616,14]
[337601857,1725889841719,-596.54,0.00035616,14]
[337601859,1725889841728,-500.0,0.00035616,14]
[337601861,1725889841737,-500.0,0.00035616,14]
[337601863,1725889841746,-500.0,0.00035616,14]
[337601865,1725889841755,-500.0,0.00035616,14]
[337601867,1725889841767,-524.69,0.00035616,14]
[337601869,1725889841776,-500.0,0.00035616,14]
[337601871,1725889841786,-500.0,0.00035616,14]
[337601873,1725889841797,-500.0,0.00035616,14]
[337601875,1725889841806,-500.0,0.00035616,14]
[337601877,1725889841815,-151.0,0.00035616,14]
[337601879,1725889841824,-151.0,0.00035616,14]
[337601882,1725889841834,-500.0,0.00035616,14]
[337601884,1725889841843,-500.0,0.00035616,14]
[337601886,1725889841852,-500.0,0.00035616,14]
[337601888,1725889841861,-500.0,0.00035616,14]
[337601890,1725889841870,-739.14,0.00035616,14]
[337601892,1725889841880,-500.0,0.00035616,14]
[337601894,1725889841889,-867.25,0.00035616,14]
[337601896,1725889841900,-500.0,0.00035616,14]
[337601898,1725889841910,-537.14316123,0.00035616,14]
[337601900,1725889841920,-592.1,0.00035616,14]
[337601902,1725889841929,-500.0,0.00035616,14]
[337601904,1725889841940,-1554.58,0.00035616,14]
[337601906,1725889841950,-926.59,0.00035616,14]
[337601908,1725889841959,-500.0,0.00035616,14]
[337601910,1725889841968,-500.0,0.00035616,14]
[337601912,1725889841977,-585.97689458,0.00035616,14]
[337601914,1725889841987,-500.44967905,0.00035616,14]
[337601916,1725889841997,-500.0,0.00035616,2]
[337601918,1725889842007,-500.92139125,0.00035616,14]
[337601920,1725889842017,-500.0,0.00035616,14]
[337601922,1725889842026,-500.0,0.00035616,14]
[337601924,1725889842036,-506.58544579,0.00035616,14]
[337601926,1725889842046,-500.0,0.00035616,14]
[337601928,1725889842057,-500.0,0.00035616,14]
[337601930,1725889842067,-502.035782,0.00035616,14]
[337601932,1725889842081,-873.03,0.00035616,14]
[337601934,1725889842091,-500.0,0.00035616,14]
[337601936,1725889842100,-500.0,0.00035616,14]
[337601938,1725889842109,-500.0,0.00035616,14]
[337601940,1725889842120,-500.0,0.00035616,14]
[337601942,1725889842130,-502.29590103,0.00035616,14]
[337601944,1725889842142,-500.0,0.00035616,14]
[337601946,1725889842154,-500.0,0.00035616,14]
[337601948,1725889842165,-500.0,0.00035616,14]
[337601950,1725889842175,-500.0,0.00035616,14]
[337601952,1725889842185,-531.71035342,0.00035616,14]
[337601954,1725889842194,-500.0,0.00035616,14]
[337601956,1725889842204,-500.0,0.00035616,14]
[337601957,1725889842213,-500.0,0.00035616,14]
[337601960,1725889842223,-500.0,0.00035616,14]
[337601962,1725889842233,-500.0,0.00035616,14]
[337601964,1725889842244,-1659.28,0.00035616,14]
[337601966,1725889842254,-500.0,0.00035616,14]
[337601968,1725889842263,-500.0,0.00035616,14]
[337601970,1725889842272,-500.72408955,0.00035616,14]
[337601972,1725889842281,-500.0,0.00035616,14]
[337601974,1725889842290,-526.95,0.00035616,14]
[337601976,1725889842299,-500.0,0.00035616,14]
[337601978,1725889842308,-500.0,0.00035616,30]
[337601980,1725889842317,-358.58173079,0.00035616,14]
[337601982,1725889842325,-500.0,0.00035616,14]
[337601984,1725889842335,-1390.8,0.00035616,14]
[337601986,1725889842344,-500.0,0.00035616,14]
[337601988,1725889842353,-500.0,0.00035616,14]
[337601990,1725889842363,-500.0,0.00035616,14]
[337601992,1725889842372,-500.0,0.00035616,14]
[337601994,1725889842382,-176.81186051,0.00035616,14]